bitfinex/quotes_ETHUSD_20250608
["timestamp","ask_amount","ask_price","bid_price","bid_amount"]
[1749369771408,0.55,2521.3,2521.0,7.025]
[1749369771701,0.55,2521.3,2521.1,3.96641052]
[1749369771904,1.08571192,2521.3,2520.9,10.98172966]
[1749369772097,5.13553107,2521.3,2520.8,3.96692]
[1749369772302,5.13553107,2521.3,2520.8,10.98092]
[1749369772474,5.13553107,2521.3,2520.9,3.96683551]
[1749369772675,0.55,2521.1,2520.8,3.96689954]
[1749369772885,2.625,2521.0,2520.9,3.96683724]
[1749369773177,2.625,2521.0,2520.8,3.96692313]
[1749369773374,2.625,2521.0,2520.8,3.9669946]
[1749369773575,0.55,2521.0,2520.9,3.96683724]
[1749369773773,2.546,2521.0,2520.9,3.96683724]
[1749369775111,0.7573,2521.4,2520.7,7.013]
[1749369775410,1.996,2521.0,2520.9,3.96683724]
[1749369777114,0.55,2521.3,2521.1,3.96646322]
[1749369777421,1.996,2521.2,2521.1,3.96646322]
[1749369777919,1.996,2521.2,2520.9,3.96679648]
[1749369778291,1.996,2521.2,2521.0,3.96657764]
[1749369778687,1.996,2521.2,2520.8,3.96694186]
[1749369778892,0.55,2521.1,2520.8,3.96698356]
[1749369781730,0.55,2521.1,2520.7,6.972]
[1749369782621,0.55,2521.1,2520.7,3.9670633]
[1749369782783,0.70317082,2521.0,2520.6,3.96725128]
[1749369782990,0.70317082,2521.0,2520.2,0.7918]
[1749369782991,5.39201915,2520.9,2520.4,6.964]
[1749369783201,9.35892122,2520.9,2520.4,10.93150076]
[1749369783397,1.3422,2520.9,2520.5,3.96745666]
[1749369783811,1.3422,2520.9,2520.7,3.96700504]
[1749369784000,0.55,2520.7,2520.6,3.96730937]
[1749369785225,0.55,2520.7,2520.5,3.9673822]
[1749369785549,0.55,2520.7,2520.5,3.96744823]
[1749369785986,0.55,2520.7,2520.6,3.96730937]
[1749369786194,2.547,2520.7,2520.6,3.96730937]
[1749369787322,1.3422,2520.9,2520.8,3.9669946]
[1749369787553,3.3392,2520.9,2520.8,3.9669946]
[1749369788097,2.547,2520.9,2520.8,3.9669946]
[1749369788521,0.55,2520.9,2520.8,3.9669946]
[1749369788734,2.547,2520.9,2520.8,3.9669946]
[1749369789430,1.30661323,2521.2,2520.9,3.96679336]
[1749369789731,4.27766132,2521.1,2520.9,3.96679336]
[1749369790106,17.9199,2521.6,2521.0,4.04981915]
[1749369790308,1.997,2521.5,2521.1,6.937]
[1749369790509,1.997,2521.5,2521.2,3.96636522]
[1749369790818,3.8542211,2521.5,2521.2,3.96627728]
[1749369791732,3.8542211,2521.5,2521.1,10.90351677]
[1749369791935,3.8542211,2521.5,2521.2,3.96624963]
[1749369792534,3.8542211,2521.5,2521.3,3.96616592]
[1749369792735,3.8542211,2521.5,2521.4,3.9660506]
[1749369792736,2.4072211,2521.5,2521.4,3.9660506]
[1749369793045,2.547,2521.5,2521.4,3.9660506]
[1749369793333,17.9199,2521.6,2521.5,3.96589331]
[1749369793538,19.688,2521.6,2521.5,3.96589331]
[1749369795739,17.691,2521.6,2521.5,3.96589331]
[1749369796243,19.138,2521.6,2521.5,3.96589331]
[1749369797549,17.141,2521.6,2521.5,3.96589331]
[1749369797846,19.138,2521.6,2521.5,3.96589331]
[1749369799755,17.141,2521.6,2521.4,6.923]
[1749369799956,19.137,2521.6,2521.4,6.923]
[1749369800159,17.141,2521.6,2521.5,3.96589331]
[1749369800478,19.137,2521.6,2521.5,3.96589331]
[1749369801436,17.141,2521.6,2521.5,3.96589331]
[1749369801732,19.137,2521.6,2521.5,3.96589331]
[1749369802175,19.137,2521.6,2521.4,10.88894481]
[1749369802476,19.137,2521.6,2521.5,3.96589331]
[1749369803032,21.13122,2521.6,2521.5,3.96589331]
[1749369804432,19.13522,2521.6,2521.5,3.96589331]
[1749369804637,19.064,2521.6,2521.5,3.96589331]
[1749369804894,17.141,2521.6,2521.5,3.96589331]
[1749369805368,19.064,2521.6,2521.5,3.96589331]
[1749369810675,17.141,2521.6,2521.5,3.96589331]
[1749369810836,19.064,2521.6,2521.5,3.96589331]
[1749369812882,17.141,2521.6,2521.5,3.96589331]
[1749369813042,19.064,2521.6,2521.5,3.96589331]
[1749369825162,19.6932518,2521.6,2521.5,3.96589331]
[1749369832810,20.4521518,2521.6,2521.4,10.88898987]
[1749369833327,20.4521518,2521.6,2521.5,3.96589331]
[1749369834938,19.064,2521.6,2521.5,3.96589331]
[1749369838840,19.064,2521.6,2521.1,0.8242]
[1749369839002,19.064,2521.6,2521.3,3.96611405]
[1749369839208,19.064,2521.6,2521.4,6.754]
[1749369839542,0.55,2521.5,2521.4,6.754]
[1749369840125,2.401,2521.5,2521.4,10.7200506]
[1749369842350,2.401,2521.5,2521.4,6.754]
[1749369842510,2.401,2521.5,2521.4,10.7200506]
[1749369845149,2.401,2521.5,2521.4,6.754]
[1749369846148,2.401,2521.5,2521.4,10.7200506]
[1749369846965,2.401,2521.5,2521.4,6.754]
[1749369848236,2.401,2521.5,2521.4,10.7200506]
[1749369848755,2.401,2521.5,2521.4,6.754]
[1749369849453,2.401,2521.5,2521.4,6.722]
[1749369849638,4.3562,2521.5,2521.4,6.722]
[1749369850043,0.7964,2521.4,2520.9,0.77]
[1749369850227,0.55,2521.3,2521.0,10.68659887]
[1749369850751,0.55,2521.3,2521.0,6.72]
[1749369850954,1.96198928,2521.3,2521.0,6.72]
[1749369851317,1.96198928,2521.3,2521.0,10.68667858]
[1749369851761,0.55,2521.1,2520.7,3.96702476]
[1749369851914,0.55,2521.1,2520.8,10.68198054]
[1749369852119,4.59981915,2521.1,2520.8,6.715]
[1749369852357,4.59981915,2521.1,2520.7,3.96706786]
[1749369852358,4.59981915,2521.1,2520.9,6.714]
[1749369852532,5.77238739,2521.1,2520.9,6.714]
[1749369852725,9.7389352,2521.1,2520.6,3.96724274]
[1749369853054,5.77238739,2521.1,2520.7,10.68014061]
[1749369853852,5.77238739,2521.1,2520.8,3.96697897]
[1749369854456,1.72256824,2521.1,2520.8,3.96697897]
[1749369855466,1.72256824,2521.1,2520.7,10.68014414]
[1749369857472,1.72256824,2521.1,2520.7,6.713]
[1749369857692,1.72256824,2521.1,2520.4,3.96759993]
[1749369857893,5.77238739,2521.1,2520.5,10.66832576]
[1749369858094,0.55,2520.9,2520.5,10.66832576]
[1749369858305,2.673,2520.8,2520.6,6.699]
[1749369858799,2.673,2520.8,2520.6,10.66627634]
[1749369863237,17.148,2520.7,2520.6,10.66627634]
[1749369866143,17.148,2520.7,2520.6,6.699]
[1749369866435,17.698,2520.7,2520.6,6.699]
[1749369867638,19.7351,2520.7,2520.6,6.675]
[1749369870349,19.7351,2520.7,2520.6,6.668]
[1749369870551,3.96753377,2520.5,2520.1,0.7771]
[1749369870750,0.55,2520.6,2520.2,6.668]
[1749369870913,3.5925186,2520.6,2520.3,6.668]
[1749369871508,3.5925186,2520.6,2520.3,10.63577142]
[1749369873027,0.55,2520.4,2520.0,3.96817878]
[1749369873223,0.55,2520.4,2520.2,6.664]
[1749369877531,3.96786466,2520.3,2519.8,3.96854288]
[1749369877737,0.55,2520.1,2519.9,3.96832083]
[1749369878054,0.55,2520.1,2520.0,6.654]
[1749369878255,0.55,2520.1,2520.0,6.653]
[1749369878824,0.7513,2520.0,2519.7,3.968669]
[1749369879019,0.7513,2520.0,2519.8,6.651]
[1749369879546,1.45812423,2520.0,2519.4,4.78058593]
[1749369879750,1.45812423,2520.0,2519.6,3.9688735]
[1749369880823,4.59981915,2519.9,2519.4,6.647]
[1749369881023,0.55,2519.9,2519.6,3.96887418]
[1749369881326,0.55,2519.7,2519.5,3.96896136]
[1749369881557,1.799,2519.6,2519.4,10.61613532]
[1749369882262,1.799,2519.6,2519.5,3.96904147]
[1749369882830,1.799,2519.6,2519.4,10.61611523]
[1749369883561,1.799,2519.6,2519.4,10.61411523]
[1749369883862,1.799,2519.6,2519.5,3.96904147]
[1749369884446,1.8,2519.6,2519.5,3.96904147]
[1749369885250,0.55,2519.3,2518.8,3.96998818]
[1749369885452,17.154,2519.2,2519.0,3.96981575]
[1749369886462,17.154,2519.2,2519.0,10.61081575]
[1749369887165,17.154,2519.2,2519.0,10.60881575]
[1749369888061,17.154,2519.2,2519.0,6.639]
[1749369888238,17.154,2519.2,2519.0,10.60879511]
[1749369888439,19.6929,2519.2,2519.0,6.636]
[1749369888660,19.6929,2519.2,2519.0,10.60582542]
[1749369889467,17.9775,2519.2,2519.0,10.60582542]
[1749369889973,17.9775,2519.2,2519.0,6.636]
[1749369890278,0.55,2519.1,2518.9,6.633]
[1749369890466,2.35,2519.0,2518.9,6.633]
[1749369893268,2.35,2519.0,2518.9,10.60298689]
[1749369893676,2.35,2519.0,2518.9,6.633]
[1749369894454,2.35,2519.0,2518.9,10.60298689]
[1749369897874,17.154,2519.2,2519.1,3.9696717]
[1749369898074,19.465,2519.2,2519.1,4.33946417]
[1749369898582,19.465,2519.2,2519.1,3.9696717]
[1749369899664,19.465,2519.2,2519.1,4.33944481]
[1749369900241,17.704,2519.2,2519.1,4.33983417]
[1749369900441,19.465,2519.2,2519.1,3.9696717]
[1749369900660,18.915,2519.2,2519.1,3.9696717]
[1749369900977,18.915,2519.2,2519.1,10.95371417]
[1749369901274,18.915,2519.2,2519.1,10.5836717]
[1749369901646,18.915,2519.2,2519.1,10.95351254]
[1749369901878,18.915,2519.2,2519.1,10.5836717]
[1749369902074,17.154,2519.2,2519.1,10.5836717]
[1749369902382,17.154,2519.2,2519.1,11.3573717]
[1749369902537,18.915,2519.2,2519.1,11.3573717]
[1749369903242,17.154,2519.2,2519.1,11.72703205]
[1749369903442,18.915,2519.2,2519.1,11.3573717]
[1749369904555,18.915,2519.2,2519.1,11.72704191]
[1749369904755,18.915,2519.2,2519.1,11.3573717]
[1749369905648,17.154,2519.2,2519.1,11.72701943]
[1749369905990,17.154,2519.2,2519.1,11.3573717]
[1749369906147,18.915,2519.2,2519.1,11.3573717]
[1749369906982,18.915,2519.2,2519.1,12.32702474]
[1749369907283,17.154,2519.2,2519.1,11.9573717]
[1749369907448,18.915,2519.2,2519.1,11.9573717]
[1749369908602,17.154,2519.2,2519.1,11.9573717]
[1749369908753,18.915,2519.2,2519.1,11.9573717]
[1749369910281,18.915,2519.2,2519.1,12.32703185]
[1749369910473,17.154,2519.2,2519.1,11.9573717]
[1749369910675,18.915,2519.2,2519.1,11.9573717]
[1749369911071,18.915,2519.2,2519.1,12.3270364]
[1749369911275,18.915,2519.2,2519.1,11.9573717]
[1749369912981,17.154,2519.2,2519.1,11.9573717]
[1749369913168,18.915,2519.2,2519.1,11.9573717]
[1749369914158,17.154,2519.2,2519.1,11.9573717]
[1749369914464,18.915,2519.2,2519.1,12.32823972]
[1749369914676,18.915,2519.2,2519.1,11.9573717]
[1749369916408,18.915,2519.2,2519.1,12.32823362]
[1749369916620,18.915,2519.2,2519.1,11.9573717]
[1749369917221,18.915,2519.2,2519.1,12.32823376]
[1749369917426,18.915,2519.2,2519.1,11.9573717]
[1749369918088,17.154,2519.2,2519.1,11.9573717]
[1749369918516,18.915,2519.2,2519.1,11.9573717]
[1749369923750,18.915,2519.2,2519.1,27.9573717]
[1749369925449,17.154,2519.2,2519.1,27.9573717]
[1749369925752,18.915,2519.2,2519.1,27.9573717]
[1749369926918,17.154,2519.2,2519.1,27.9573717]
[1749369927184,18.884,2519.2,2519.1,27.9573717]
[1749369927464,18.884,2519.2,2519.1,28.3545828]
[1749369928153,17.154,2519.2,2519.1,28.3545828]
[1749369928655,18.884,2519.2,2519.1,28.3545828]
[1749369936519,17.154,2519.2,2519.1,28.3545828]
[1749369936685,18.884,2519.2,2519.1,28.3545828]
[1749369938929,17.154,2519.2,2519.1,28.3545828]
[1749369939136,18.884,2519.2,2519.1,28.3545828]
[1749369940387,18.884,2519.2,2519.1,33.0745828]
[1749369942237,18.884,2519.2,2519.1,28.9045828]
[1749369942399,18.884,2519.2,2519.1,33.6245828]
[1749369942599,18.884,2519.2,2519.1,21.7405828]
[1749369942815,18.884,2519.2,2519.1,28.2845828]
[1749369947705,18.884,2519.2,2519.1,33.0045828]
[1749369950611,1.73,2519.2,2519.1,33.0045828]
[1749369954619,1.73,2519.2,2519.1,32.9905828]
[1749369955161,1.73,2519.2,2519.1,32.2168828]
[1749369959536,1.73,2519.2,2519.1,20.9668828]
[1749369959732,1.73,2519.2,2519.1,27.4908828]
[1749369965537,1.73,2519.2,2519.1,20.5696717]
[1749369965538,2.5211,2519.2,2519.1,20.5696717]
[1749369965738,2.5211,2519.2,2519.1,27.0936717]
[1749369967133,17.153,2520.0,2519.9,3.96841144]
[1749369967445,20.5733,2520.0,2519.9,3.96841144]
[1749369967754,21.3644,2520.0,2519.9,3.96841144]
[1749369968142,19.6594,2520.0,2519.9,3.96841144]
[1749369968343,21.3644,2520.0,2519.9,3.96841144]
[1749369970267,19.6594,2520.0,2519.9,3.96841144]
[1749369970480,21.3644,2520.0,2519.9,3.96841144]
[1749369972363,19.6491,2520.0,2519.9,3.96841144]
[1749369974794,19.6491,2520.0,2519.9,10.49241144]
[1749369974995,17.9441,2520.0,2519.9,10.49241144]
[1749369975287,19.6491,2520.0,2519.9,10.49241144]
[1749369976461,18.858,2520.0,2519.9,14.54223059]
[1749369976656,17.153,2520.0,2519.9,14.54223059]
[1749369976988,18.858,2520.0,2519.9,14.54223059]
[1749369977497,17.153,2520.0,2519.9,14.54223059]
[1749369977790,17.153,2521.1,2521.0,3.96667988]
[1749369977956,18.858,2521.1,2521.0,10.49067988]
[1749369978590,18.858,2521.1,2521.0,14.54049903]
[1749369978886,18.858,2521.1,2521.0,10.49067988]
[1749369982299,19.6606,2521.1,2521.0,10.48967988]
[1749369982495,20.46471324,2521.1,2521.0,10.48967988]
[1749369982700,20.46471324,2521.1,2521.0,6.523]
[1749369983022,20.46471324,2521.1,2521.0,10.48967988]
[1749369984597,0.759,2521.0,2520.9,3.96680384]
[1749369984913,0.759,2521.0,2520.9,6.522]
[1749369985069,2.80111132,2521.0,2520.9,6.522]
[1749369985505,2.80111132,2521.0,2520.9,10.48883724]
[1749369986413,2.80111132,2521.0,2520.8,3.96694406]
[1749369986570,2.80111132,2521.0,2520.9,6.522]
[1749369986787,2.80111132,2521.0,2520.6,3.96730384]
[1749369986788,0.759,2520.9,2520.6,3.96730384]
[1749369986993,0.759,2520.7,2520.6,3.96730384]
[1749369987216,0.759,2520.7,2520.6,6.522]
[1749369987419,0.759,2520.7,2520.6,10.48930937]
[1749369989615,0.759,2520.7,2520.6,6.522]
[1749369990325,0.759,2520.7,2520.5,3.96737985]
[1749369990574,0.759,2520.7,2520.6,6.522]
[1749369990698,0.50060688,2520.7,2520.6,6.522]
[1749369990904,0.833,2520.7,2520.6,6.522]
[1749369996843,4.80015632,2520.7,2520.5,6.522]
[1749369997149,0.833,2520.7,2520.5,6.522]
[1749369999141,0.833,2520.7,2520.5,10.48940682]
[1749369999344,0.833,2520.7,2520.5,6.522]
[1749369999555,1.34099982,2520.7,2520.5,6.522]
[1749370004556,1.705,2520.6,2520.5,10.48946187]
[1749370004722,1.705,2520.6,2520.5,6.522]
[1749370006558,1.705,2520.6,2520.5,10.48946677]
[1749370006755,1.705,2520.6,2520.5,6.522]
[1749370007355,1.705,2520.6,2520.5,10.48946677]
[1749370007857,1.705,2520.6,2520.5,10.48944135]
[1749370008571,0.7588,2520.9,2520.8,3.9669946]
[1749370008860,4.25498,2520.9,2520.8,10.4889946]
[1749370009462,17.153,2521.1,2521.0,3.96667988]
[1749370009782,18.858,2521.1,2521.0,3.96667988]
[1749370014371,18.858,2521.1,2521.0,10.48767988]
[1749370028181,18.858,2521.1,2521.0,3.96667988]
[1749370028385,18.858,2521.1,2521.0,10.48467988]
[1749370030348,18.858,2521.1,2521.0,3.96667988]
[1749370030551,18.858,2521.1,2521.0,10.48467988]
[1749370032250,21.22486192,2521.1,2521.0,6.518]
[1749370032585,21.22486192,2521.1,2521.0,10.48467988]
[1749370033376,21.22486192,2521.1,2521.0,6.518]
[1749370033765,21.22486192,2521.1,2521.0,10.48467988]
[1749370035989,18.858,2521.1,2521.0,10.48467988]
[1749370038385,17.153,2521.1,2521.0,10.48467988]
[1749370038555,18.856,2521.1,2521.0,10.48467988]
[1749370042885,17.153,2521.1,2521.0,10.48467988]
[1749370043092,18.856,2521.1,2521.0,10.48467988]
[1749370043499,17.153,2521.1,2521.0,10.48467988]
[1749370043694,18.856,2521.1,2521.0,10.48467988]
[1749370053498,17.153,2521.1,2521.0,10.48467988]
[1749370053702,18.855,2521.1,2521.0,10.48467988]
[1749370055220,18.855,2521.1,2521.0,10.48267988]
[1749370058245,17.153,2521.1,2521.0,10.48267988]
[1749370058448,18.855,2521.1,2521.0,10.48267988]
[1749370063465,0.01,2521.6,2521.2,3.96636522]
[1749370063671,0.01,2521.6,2521.5,3.96589331]
[1749370063974,1.712,2521.6,2521.5,10.48089331]
[1749370067467,1.711,2521.6,2521.5,11.25159331]
[1749370070635,1.711,2521.6,2521.5,10.48089331]
[1749370070838,1.711,2521.6,2521.5,10.47889331]
[1749370071439,2.5167,2521.6,2521.5,10.47889331]
[1749370073048,2.5167,2521.6,2521.5,3.96589331]
[1749370073264,2.5167,2521.6,2521.5,10.47889331]
[1749370077505,2.5167,2521.6,2521.5,6.513]
[1749370077675,3.72335192,2521.6,2521.5,6.512]
[1749370079607,3.72335192,2521.6,2521.5,10.47789331]
[1749370080806,0.01,2521.6,2521.5,10.47789331]
[1749370081010,1.711,2521.6,2521.5,10.47789331]
[1749370081608,0.01,2521.6,2521.5,10.47789331]
[1749370081808,1.709,2521.6,2521.5,10.47789331]
[1749370082016,1.709,2521.6,2521.5,11.28169331]
[1749370082660,0.01,2521.6,2521.5,15.33151246]
[1749370082815,1.709,2521.6,2521.5,15.33151246]
[1749370084313,1.709,2521.6,2521.5,11.28169331]
[1749370084727,1.709,2521.6,2521.5,15.33151246]
[1749370085178,1.709,2521.6,2521.5,31.33151246]
[1749370086355,1.709,2521.6,2521.5,20.76969331]
[1749370086530,1.709,2521.6,2521.5,27.28069331]
[1749370089425,1.709,2521.6,2521.5,10.47589331]
[1749370092966,1.709,2521.6,2521.5,3.96589331]
[1749370093132,1.709,2521.6,2521.5,10.47589331]
[1749370094074,1.709,2521.6,2521.5,3.96589331]
[1749370094247,1.709,2521.6,2521.5,6.51]
[1749370094572,1.709,2521.6,2521.5,10.47589331]
[1749370094949,2.5361,2521.6,2521.5,10.47589331]
[1749370097665,19.6781,2521.6,2521.5,10.47589331]
[1749370099301,19.6781,2521.6,2521.5,3.96589331]
[1749370099629,19.6781,2521.6,2521.5,10.47589331]
[1749370101885,18.851,2521.6,2521.5,10.47589331]
[1749370103223,17.152,2521.6,2521.5,10.47589331]
[1749370103424,18.851,2521.6,2521.5,10.47589331]
[1749370104416,17.152,2521.6,2521.5,10.47589331]
[1749370104736,18.851,2521.6,2521.5,10.47589331]
[1749370107207,17.152,2521.6,2521.5,10.47589331]
[1749370107423,18.851,2521.6,2521.5,10.47589331]
[1749370108544,18.851,2521.6,2521.5,10.47489331]
[1749370113382,18.85,2521.6,2521.5,10.47489331]
[1749370118534,1.708,2521.6,2521.5,10.47489331]
[1749370119391,0.01,2521.6,2521.5,10.47489331]
[1749370119595,1.707,2521.6,2521.5,10.47489331]
[1749370130653,2.5205,2521.6,2521.5,10.47189331]
[1749370139323,2.5205,2521.6,2521.5,3.96589331]
[1749370139526,3.724591,2521.6,2521.5,10.47089331]
[1749370139854,2.911091,2521.6,2521.5,10.47089331]
[1749370140049,2.659041,2521.6,2521.5,10.47089331]
[1749370142534,1.707,2521.6,2521.5,10.47089331]
[1749370143072,1.705,2521.6,2521.5,10.47089331]
[1749370144534,0.01,2521.6,2521.5,10.47089331]
[1749370145045,1.705,2521.6,2521.5,10.47089331]
[1749370146565,1.705,2521.6,2521.5,10.46989331]
[1749370146780,0.01,2521.6,2521.5,10.46989331]
[1749370146949,1.705,2521.6,2521.5,10.46989331]
[1749370157175,1.705,2521.6,2521.5,10.46889331]
[1749370157483,6.95612204,2521.6,2521.5,6.503]
[1749370157641,2.90630289,2521.6,2521.5,10.46889331]
[1749370159785,3.73280289,2521.6,2521.5,6.503]
[1749370159985,3.73280289,2521.6,2521.5,10.46889331]
[1749370163886,3.73280289,2521.6,2521.2,3.96630614]
[1749370164191,2.78095,2521.6,2521.4,3.96603347]
[1749370165685,2.78095,2521.6,2521.3,10.46820221]
[1749370165850,2.78095,2521.6,2521.4,3.9660506]
[1749370166053,2.78095,2521.6,2521.3,3.96612393]
[1749370166251,0.95114636,2521.5,2521.4,6.502]
[1749370166465,1.22924136,2521.5,2521.4,6.502]
[1749370167071,0.8219,2521.4,2521.3,6.502]
[1749370167289,0.8219,2521.4,2520.6,0.7717]
[1749370167290,6.37286551,2521.4,2520.6,0.7717]
[1749370167493,0.95096876,2521.3,2521.0,3.96659557]
[1749370167698,0.66509605,2521.3,2521.1,6.502]
[1749370168001,0.66509605,2521.3,2521.0,3.96659557]
[1749370168177,0.8219,2521.2,2521.1,6.502]
[1749370168992,5.82243774,2521.2,2521.1,6.502]
[1749370169191,6.92280322,2521.2,2521.1,6.502]
[1749370170604,6.92280322,2521.2,2521.0,3.96667549]
[1749370170776,5.97208463,2521.2,2521.0,10.46866314]
[1749370171399,5.97208463,2521.2,2521.0,6.502]
[1749370171982,4.87171915,2521.2,2521.0,10.46865407]
[1749370172304,4.87171915,2521.2,2520.8,3.96696393]
[1749370172506,4.87171915,2521.2,2520.9,10.46868316]
[1749370172863,4.87171915,2521.2,2521.0,3.96667497]
[1749370173079,4.87171915,2521.2,2520.8,3.96696393]
[1749370173279,5.81050348,2521.2,2520.9,10.46881843]
[1749370173800,0.7704,2521.0,2520.8,10.46890043]
[1749370173990,1.693,2520.9,2520.8,10.46890043]
[1749370177715,1.693,2520.9,2520.8,3.9669946]
[1749370177892,1.693,2520.9,2520.8,10.4689946]
[1749370178931,0.7704,2521.0,2520.8,3.9669946]
[1749370179095,0.7704,2521.0,2520.9,3.96683724]
[1749370179888,19.6104,2521.0,2520.9,10.46783724]
[1749370184339,19.6104,2521.0,2520.3,3.96772494]
[1749370184340,26.02624107,2521.0,2520.3,3.96772494]
[1749370184519,26.02624107,2521.0,2520.6,3.96715231]
[1749370184845,26.02624107,2521.0,2520.5,3.96744878]
[1749370184846,0.55,2520.9,2520.7,10.46813883]
[1749370185137,0.55,2520.9,2520.7,6.501]
[1749370185843,0.55,2520.9,2520.7,10.46813636]
[1749370186142,3.20762411,2520.9,2520.7,10.46813636]
[1749370189330,4.83281915,2520.8,2520.7,6.501]
[1749370189530,1.333,2520.8,2520.7,6.501]
[1749370195131,2.28360038,2520.8,2520.7,6.501]
[1749370195639,2.28390494,2520.8,2520.7,6.501]
[1749370195846,5.30364195,2520.8,2520.7,6.501]
[1749370200250,5.30397866,2520.8,2520.7,6.501]
[1749370202153,5.30397866,2520.8,2520.7,6.5]
[1749370205057,6.99497866,2520.8,2520.7,6.5]
[1749370207277,6.21197866,2520.8,2520.7,6.5]
[1749370208290,1.691,2520.8,2520.7,11.24435198]
[1749370209859,17.146,2521.0,2520.9,3.96683724]
[1749370210064,18.837,2521.0,2520.9,11.27243724]
[1749370210572,17.146,2521.0,2520.9,31.32225639]
[1749370210774,18.837,2521.0,2520.9,31.32225639]
[1749370211774,18.837,2521.0,2520.9,27.27243724]
[1749370214096,17.146,2521.0,2520.9,27.27243724]
[1749370214301,18.837,2521.0,2520.9,31.32225639]
[1749370214467,0.01,2521.6,2521.5,4.79399331]
[1749370214793,0.01,2521.6,2521.5,11.29099331]
[1749370214794,1.701,2521.6,2521.5,11.29099331]
[1749370218508,0.01,2521.6,2521.5,11.29099331]
[1749370218663,1.701,2521.6,2521.5,11.29099331]
[1749370219465,0.01,2521.6,2521.5,11.29099331]
[1749370219673,1.701,2521.6,2521.5,11.29099331]
[1749370220471,0.01,2521.6,2521.5,11.29099331]
[1749370220671,1.701,2521.6,2521.5,11.29099331]
[1749370233111,1.701,2521.6,2521.5,10.46289331]
[1749370242142,1.701,2521.6,2521.5,3.96589331]
[1749370242435,1.701,2521.6,2521.5,10.45789331]
[1749370246195,1.701,2521.6,2521.5,3.96589331]
[1749370246303,1.701,2521.6,2521.5,10.45789331]
[1749370247644,1.95179,2521.6,2521.5,10.45789331]
[1749370247959,7.76034667,2521.6,2521.4,3.96598913]
[1749370248163,0.95183752,2521.5,2521.4,3.96598913]
[1749370248935,2.75869,2521.6,2521.5,3.96589331]
[1749370249243,3.71005092,2521.6,2521.5,3.96589331]
[1749370253091,2.75869,2521.6,2521.5,3.96589331]
[1749370253979,3.70921253,2521.6,2521.5,3.96589331]
[1749370254179,2.75869,2521.6,2521.5,3.96589331]
[1749370256083,3.70905413,2521.6,2521.5,3.96589331]
[1749370257748,2.75869,2521.6,2521.5,3.96589331]
[1749370258086,2.01791817,2521.6,2521.5,3.96589331]
[1749370258283,2.75669,2521.6,2521.5,3.96589331]
[1749370258858,0.01,2521.6,2521.5,3.96589331]
[1749370259047,1.699,2521.6,2521.5,3.96589331]
[1749370262858,18.842,2521.6,2521.5,3.96589331]
[1749370267185,18.842,2521.6,2521.5,10.45589331]
[1749370271784,19.79287622,2521.6,2521.5,10.45589331]
[1749370272566,21.84846384,2521.6,2521.4,3.96599632]
[1749370272767,20.89758762,2521.6,2521.5,6.489]
[1749370273080,21.84859355,2521.6,2521.5,6.489]
[1749370274069,0.7551,2521.5,2521.3,3.96617984]
[1749370274270,3.01546936,2521.5,2521.4,6.489]
[1749370274472,3.01546936,2521.5,2521.3,3.96616267]
[1749370274473,3.96662018,2521.5,2521.3,3.96616267]
[1749370274670,0.95115082,2521.4,2521.3,3.9662079]
[1749370274879,0.95115082,2521.4,2521.3,10.4552079]
[1749370278902,3.01546936,2521.5,2521.4,3.9660506]
[1749370279103,3.96689442,2521.5,2521.4,3.9660506]
[1749370280700,3.96689442,2521.5,2521.3,10.45516256]
[1749370280877,2.2727245,2521.4,2521.3,10.45516256]
[1749370281811,3.9597245,2521.4,2521.3,10.45516256]
[1749370282213,3.9597245,2521.4,2520.7,20.73502874]
[1749370282390,3.9597245,2521.4,2521.2,3.96634771]
[1749370282391,1.70652506,2521.3,2521.2,3.96634771]
[1749370282586,1.70652506,2521.3,2521.2,10.45434771]
[1749370282804,2.40404445,2521.3,2521.2,10.45434771]
[1749370285113,1.64894445,2521.3,2521.2,10.45434771]
[1749370285321,0.95142506,2521.3,2521.2,10.45434771]
[1749370287735,0.95084759,2521.3,2521.2,10.45434771]
[1749370288544,0.9508208,2521.3,2521.2,10.45434771]
[1749370288941,3.00829944,2521.4,2521.2,10.45434771]
[1749370289104,0.95080079,2521.3,2521.1,3.96644089]
[1749370289310,0.60237688,2521.3,2521.2,10.45436522]
[1749370289548,1.55317511,2521.3,2521.2,6.488]
[1749370289750,18.69817511,2521.3,2521.2,6.488]
[1749370290453,0.8055,2521.2,2520.7,0.7679]
[1749370290632,4.04981915,2521.1,2520.8,3.96686973]
[1749370290838,4.04981915,2521.1,2520.7,3.96712561]
[1749370291035,0.8055,2520.9,2520.8,6.488]
[1749370291296,0.8055,2520.9,2520.8,10.4549946]
[1749370291545,0.8055,2520.9,2520.8,6.488]
[1749370291710,5.80595556,2520.9,2520.8,6.488]
[1749370292134,4.85531915,2520.9,2520.8,6.488]
[1749370292336,4.85531915,2520.9,2520.8,10.4549946]
[1749370292502,0.8055,2520.9,2520.8,10.4549946]
[1749370293935,0.8055,2520.9,2520.8,6.488]
[1749370294109,1.29103192,2520.9,2520.8,6.488]
[1749370294545,1.29103192,2520.9,2520.6,3.96728298]
[1749370294752,1.687,2520.8,2520.7,6.488]
[1749370296451,1.687,2520.8,2520.6,3.96728298]
[1749370296651,1.687,2520.8,2520.7,6.487]
[1749370296851,2.38978511,2520.8,2520.7,6.487]
[1749370299966,2.38978511,2520.8,2520.7,10.45415198]
[1749370300847,2.38978511,2520.8,2520.7,10.45515198]
[1749370301049,2.38978511,2520.8,2520.7,6.488]
[1749370301266,2.38978511,2520.8,2520.7,10.45515198]
[1749370303062,2.38978511,2520.8,2520.7,3.96715198]